[Event "Benidorm Open-B 2022"]
[Site "Benidorm"]
[Date "2022.12.10"]
[Round "9.13"]
[White "Diez Viera, Oscar"]
[Black "Camison Zornoza, Cesar"]
[Result "1/2-1/2"]
[ECO "B02"]
[WhiteElo "1858"]
[BlackElo "1875"]
[Annotator "NA RC COMBH"]
[PlyCount "75"]
[EventDate "2022.12.03"]
[EventType "swiss"]
[EventCountry "ESP"]
[SourceTitle "playchess.com"]
[Source "ChessBase"]
[SourceQuality "1"]
[TimeControl "5400+30"]

1. e4 Nf6 2. d3 e5 3. g3 Bc5 4. Bg5 h6 5. Bxf6 Qxf6 6. Qe2 Qb6 7. c3 a5 8. Nf3 d6 9. Bg2 Nc6 10. O-O Bg4 11. Qc2 Bxf3 12. Bxf3 a4 13. Nd2 Qa7 14. Rab1 O-O 15. b4 axb3 16. axb3 b5 17. b4 Bb6 18. Nb3 Qb7 19. Ra1 Ra4 20. Rxa4 bxa4 21. Nd2 Ra8 22. Ra1 Qa7 23. Nc4 Nd8 24. Bd1 Qb8 25. Rxa4 Ne6 26. Nxb6 cxb6 27. Bg4 Ng5 28. h4 Nh7 29. Qa2 Rxa4 30. Qxa4 Nf6 31. Bf5 g6 32. Bh3 b5 33. Qa6 Kg7 34. c4 bxc4 35. Qxc4 Qa7 36. b5 Qa1+ 37. Kg2 Qb1 38. b6 1/2-1/2

[Event "Benidorm Open-B 2022"]
[Site "Benidorm"]
[Date "2022.12.10"]
[Round "9.14"]
[White "Rodriguez Gomez, Vicente"]
[Black "Swapna C N"]
[Result "1-0"]
[ECO "B33"]
[WhiteElo "1854"]
[BlackElo "1481"]
[Annotator "NA RC COMBH"]
[PlyCount "115"]
[EventDate "2022.12.03"]
[EventType "swiss"]
[EventCountry "ESP"]
[SourceTitle "playchess.com"]
[Source "ChessBase"]
[SourceQuality "1"]
[TimeControl "5400+30"]

1. e4 c5 2. Nf3 Nc6 3. d4 cxd4 4. Nxd4 e5 5. Nb3 Nf6 6. Nc3 Bb4 7. Bd3 h6 8. O-O O-O 9. Ne2 Re8 10. Ng3 Bf8 11. c3 d6 12. h3 g5 13. Nh5 a6 14. Nxf6+ Qxf6 15. Qe2 Ne7 16. Nd2 Ng6 17. Nc4 Be6 18. Nb6 Rad8 19. c4 Bg7 20. Nd5 Bxd5 21. cxd5 Nf4 22. Qf3 Rc8 23. Bd2 Qd8 24. Rac1 Qb6 25. Rxc8 Rxc8 26. Bc3 Qc5 27. Kh2 b5 28. g3 Nxd3 29. Qxd3 b4 30. Bd2 a5 31. Be3 Qc4 32. Qxc4 Rxc4 33. f3 Bf6 34. Rc1 Rxc1 35. Bxc1 Bd8 36. Be3 a4 37. b3 axb3 38. axb3 Kf8 39. Kg2 Ke8 40. Kf2 Kd7 41. Ke2 Ba5 42. Kd3 Kc7 43. Kc4 Kb7 44. Kb5 Bc7 45. g4 f6 46. Bd2 Bb8 47. Bxb4 Bc7 48. Ba5 Bb8 49. Bd8 Ba7 50. Bxf6 Kc7 51. Bg7 Be3 52. Bxh6 Bf4 53. Bg7 Be3 54. Bf6 Bd2 55. h4 gxh4 56. Bxh4 Bh6 57. Bf6 Bf8 58. g5 1-0

[Event "Benidorm Open-B 2022"]
[Site "Benidorm"]
[Date "2022.12.10"]
[Round "9.15"]
[White "Kane, Robert"]
[Black "Place, Nicholas"]
[Result "0-1"]
[ECO "A01"]
[WhiteElo "1738"]
[BlackElo "1967"]
[Annotator "TA"]
[PlyCount "108"]
[EventDate "2022.12.03"]
[EventType "swiss"]
[EventCountry "ESP"]
[SourceTitle "playchess.com"]
[Source "ChessBase"]
[SourceQuality "1"]
[TimeControl "5400+30"]

{[%evp 9,108,-6,0,0,0,3,0,-16,0,-7,0,0,0,0,0,-52,-55,-43,-54,-84,-62,-77,-43,-64,-55,-43,-38,-185,-183,-304,-302,-338,-283,-291,-260,-289,-254,-331,-325,-395,-382,-362,-235,-431,-394,-526,-584,-565,-532,-510,-328,-317,-311,-326,-326,-328,-313,-476,-491,-1152,-1148,-1134,-880,-1128,-1114,-1447,-1106,-1012,-734,-856,-664,-1236,-1211,-1700,-1653,-1660,-1433,-1197,-896,-1916,-1527,-1688,-1646,-1978,-1593,-1332,-1117,-6111,-1515,-2807,-4213,-2783,-2635,-5273,-3006,-29973,-29974,-29973,-29975,-6230,-6193]} 1. b3 d5 2. Bb2 Nf6 3. f4 Bf5 4. e3 c5 5. Nf3 a6 6. Be2 {A03: Bird's Opening with 1...d5.} e6 7. O-O Nc6 8. Nh4 {The position is equal.} Bg6 {[#]} 9. f5 $146 ({Predecessor:} 9. Nxg6 hxg6 10. d3 Bd6 11. g3 d4 12. e4 Qc7 13. Nd2 g5 14. e5 Nxe5 15. fxe5 Bxe5 {1-0 (32) Engert,M (1775)-Reiche,N (1662) Sebnitz 2013}) 9... Bxf5 10. Nxf5 exf5 11. Rxf5 Be7 12. d3 (12. Bf3 $11) 12... O-O 13. Nd2 Qd7 14. Rg5 d4 (14... Rae8 {is more complex.} 15. Bg4 Qd6 16. Bf3 h6) 15. e4 {Against Nd5} b5 {[%cal Of6e4]} (15... Nxe4 $5 16. Nxe4 f5 17. Nxc5 Bxc5 $15) 16. Qe1 h6 17. Rf5 Nb4 {[%cal Bc6b4,Bb4c2,Bc2e3][%mdl 32]} 18. Qh4 {This move loses the game for White.} (18. Qc1 $15) 18... Nxc2 19. Raf1 (19. Rc1 {was worth a try.} Ne3 20. Rf3) 19... Ne3 $19 {[%csl LRf1,LRf5][%cal Of6d5]} 20. Bc1 Nxf1 (20... Nxf5 $2 {loses.} 21. Rxf5 Qe6 22. Qg3) 21. Nxf1 {[%cal Oc1h6]} Nh7 22. Qg3 Qd6 23. e5 Qg6 24. Qf2 Bg5 25. Bxg5 Nxg5 26. Kh1 $2 (26. Ng3) 26... f6 27. h4 fxe5 28. Rxf8+ Rxf8 29. Qg3 Rxf1+ 30. Bxf1 {[%mdl 4096] Endgame KQB-KQN} Qf6 31. Be2 Ne6 {[%cal Oe5e4]} 32. Bf3 Nf4 33. Qe1 (33. Kh2 $142) 33... Nxd3 34. Bd5+ (34. Qe2 $142 Nf4 35. Qe4) 34... Kh8 35. Qg3 Qf1+ 36. Kh2 Qf4 37. Bb7 a5 38. Ba6 Nb4 39. Bxb5 g5 40. hxg5 hxg5 41. Kh3 Qxg3+ 42. Kxg3 {KB-KN} Kg7 43. a3 Nc2 {[%cal Oe5e4] [#] And now ...e4! would win.} 44. a4 Kf6 {Threatens to win with ...e4.} 45. Kf3 Ne3 46. g3 Nc2 47. Ke4 Nb4 48. g4 Nc2 (48... Na2 $142 49. Be8 Nc3+ 50. Kd3 e4+ 51. Kd2 Ke5) 49. Be2 Ne3 50. Kd3 Ke6 {[#] White must now prevent ...Nd5.} 51. Ke4 Kd6 {Hoping for ...Nd5.} 52. Bf3 Nd5 53. Kd3 Nc3 54. Bg2 e4+ {Weighted Error Value: White=0.75/Black=0.41} 0-1